Cogmind - Beta 16.1 @@@ ROGUE MODE // 2026.02.07 @ 02:39:44 Player: H3-MLN Result: Escaped! Performance ------------- Evolutions (9) 4500 Regions Visited (35) 7000 Robots Destroyed (112) 560 Value Destroyed (3572) 3572 Prototype IDs (50) 1000 Alien Tech Used (0) 0 Bonus (8851) 8851 TOTAL SCORE: 25483 Bonus ------- High Alert Combat Kills 31 Follower Combat Kills 446 Hunted by Unchained 1000 Entered Garrisons 1000 Used RIF Installer 1000 Entered DSFs 3000 Aligned with FarCom 300 Win 3000 Friendly Fire -926 Cogmind --------- Core Integrity 954/1600 Matter 250/300 Energy 139/450 System Corruption 0% Temperature Cool (3) Movement Flying (32) Location To Epsilon Eridani Parts ------- > --- POWER (2) -------- (None) > --- PROPULSION (7) --- Field Propulsion Array Improved Diametric Drive Impulse Thruster Array > --- UTILITY (14) ----- Energy Well Experimental Optical Array Advanced Target Analyzer Advanced Target Analyzer Core Analyzer Advanced Transmission Jammer Advanced ECM Suite Graphene Brace Experimental System Shield Advanced Corruption Screen > --- WEAPON (2) ------- (None) > --- INVENTORY (5) ---- Improved Particle Charger Compact HERF Cannon Latent Energy Streamer Enhanced Nova Cannon Plasma Sword Peak State ------------ > --- POWER ------------ Micro Antimatter Reactor Light Quantum Reactor > --- PROPULSION ------- Improved Diametric Drive Improved Diametric Drive Improved Diametric Drive Improved Diametric Drive Improved Diametric Drive Impulse Thruster Array > --- UTILITY ---------- Advanced Heat Sink Experimental Heat Sink Energy Well Experimental Optical Array Advanced Target Analyzer Advanced Target Analyzer Core Analyzer Core Analyzer Advanced Transmission Jammer Advanced ECM Suite Graphene Brace Experimental System Shield Relay Coupler [NC] Advanced Corruption Screen > --- WEAPON ----------- Nova Cannon Advanced Remote Datajack > --- INVENTORY -------- Advanced Transmission Jammer Compact HERF Cannon Latent Energy Streamer Enhanced Nova Cannon Plasma Sword [Rating: 180] Favorites ----------- Power Light Antimatter Reactor Engine Light Ion Engine Power Core Micro Fission Core Reactor Light Antimatter Reactor Propulsion Improved Antigrav System Treads Light Treads Leg Aluminum Leg Wheel Wheel Hover Unit Improved Antigrav System Flight Unit Flight Unit Utility Hacking Suite Device Experimental Heat Sink Storage Energy Well Processor Advanced Visual Processing Unit Hackware Hacking Suite Protection Improved Heavy Armor Plating Weapon Nova Cannon Energy Gun Gamma Rifle Energy Cannon Nova Cannon Ballistic Gun Hypervelocity Gauss Rifle Ballistic Cannon Compact Linear Accelerator Launcher Mini Grenade Launcher Special Weapon Advanced Remote Datajack Impact Weapon Maul Slashing Weapon Plasma Sword Piercing Weapon Heavy Pick Special Melee Weapon Improved Datajack Build | -11 -10 -10 -10 -9 -8 -8 -8 -8 -7 -7 -7 -7 -7 -7 -6 -6 -6 -6 -5 -5 -5 -5 -4 -4 -4 -4 -3 -3 -3 -3 -2 -2 -2 -2 -1 ------- Run | Yrd Mat Min Exi Min Mat Gar Mat Gar Fac Was Fac Gar Fac DSF Fac Was Fac DSF Fac Was Fac DSF Fac Was Fac DSF Res Gar Res DSF Res Gar Res DSF Acc Slots Evolved 18 | . . . . . 4 . . . 2 . . . . . 2 . . . 2 . . . 2 . . . 2 . . . 2 . . . 2 Power 1 | . . . . . . . . . . . . . . . 1 . . . . . . . . . . . . . . . . . . . . Propulsion 5 | . . . . . 1 . . . 1 . . . . . 1 . . . . . . . . . . . 1 . . . 1 . . . . Utility 12 | . . . . . 3 . . . 1 . . . . . . . . . 2 . . . 2 . . . 1 . . . 1 . . . 2 Weapon . | . . . . . . . . . . . . . . . . . . . . . . . . . . . . . . . . . . . . Parts Attached 198 | 2 6 3 . 2 14 3 7 7 9 1 5 3 8 1 4 3 4 1 14 8 9 1 5 . 4 2 1 19 6 1 1 4 10 6 24 Power 16 | . . . . . 1 1 1 . . . 2 . . . . . . . 2 . 2 . 1 . . . . 3 . . . 1 1 . 1 Engine 6 | . . . . . 1 1 1 . . . 2 . . . . . . . 1 . . . . . . . . . . . . . . . . Core 3 | . . . . . . . . . . . . . . . . . . . 1 . 2 . . . . . . . . . . . . . . Reactor 7 | . . . . . . . . . . . . . . . . . . . . . . . 1 . . . . 3 . . . 1 1 . 1 Propulsion 62 | . 3 1 . 1 2 1 2 2 3 1 1 2 5 . 1 3 1 . 5 1 . . . . 2 2 . 4 2 . 1 . 3 5 8 Treads 2 | . 1 . . . . . . . . . . . . . 1 . . . . . . . . . . . . . . . . . . . . Leg 2 | . . . . . . . . 2 . . . . . . . . . . . . . . . . . . . . . . . . . . . Wheel 4 | . . . . . . . . . . . . . 4 . . . . . . . . . . . . . . . . . . . . . . Hover 24 | . . . . . . . . . 1 1 . . 1 . . 2 . . 5 1 . . . . 2 2 . 4 2 . . . 3 . . Flight 30 | . 2 1 . 1 2 1 2 . 2 . 1 2 . . . 1 1 . . . . . . . . . . . . . 1 . . 5 8 Utility 83 | . 3 . . . 8 . 2 3 1 . 2 . 3 1 3 . 2 . 3 5 7 1 4 . 1 . 1 8 2 . . 3 5 . 15 Device 33 | . 1 . . . 3 . 1 3 1 . . . 2 . 2 . 1 . 3 2 5 . 1 . 1 . . 2 . . . 1 2 . 2 Storage 5 | . . . . . . . . . . . . . . . . . . . . . . . . . . . . 3 . . . 1 . . 1 Processor 11 | . 1 . . . 1 . . . . . . . 1 . . . . . . 1 . . 1 . . . 1 . 1 . . . . . 4 Hackware 25 | . 1 . . . 3 . 1 . . . 2 . . . 1 . . . . . 1 1 2 . . . . 3 1 . . 1 1 . 7 Protection 9 | . . . . . 1 . . . . . . . . 1 . . 1 . . 2 1 . . . . . . . . . . . 2 . 1 Artifact . | . . . . . . . . . . . . . . . . . . . . . . . . . . . . . . . . . . . . Weapon 37 | 2 . 2 . 1 3 1 2 2 5 . . 1 . . . . 1 1 4 2 . . . . 1 . . 4 2 1 . . 1 1 . Energy Gun 8 | 1 . . . . . . . 1 1 . . . . . . . . . 2 . . . . . . . . 3 . . . . . . . Energy Cannon 8 | . . . . . . . . 1 . . . . . . . . . 1 . 2 . . . . 1 . . 1 1 . . . . 1 . Ballistic Gun 11 | 1 . 1 . 1 1 . . . 3 . . 1 . . . . 1 . 2 . . . . . . . . . . . . . . . . Ballistic Cannon 1 | . . . . . . . . . . . . . . . . . . . . . . . . . . . . . . . . . 1 . . Launcher 2 | . . 1 . . . . 1 . . . . . . . . . . . . . . . . . . . . . . . . . . . . Special Weapon 3 | . . . . . 1 . . . 1 . . . . . . . . . . . . . . . . . . . 1 . . . . . . Impact Weapon 1 | . . . . . 1 . . . . . . . . . . . . . . . . . . . . . . . . . . . . . . Slashing Weapon 1 | . . . . . . . . . . . . . . . . . . . . . . . . . . . . . . 1 . . . . . Piercing Weapon 1 | . . . . . . 1 . . . . . . . . . . . . . . . . . . . . . . . . . . . . . Special Melee Weapon 1 | . . . . . . . 1 . . . . . . . . . . . . . . . . . . . . . . . . . . . . Unidentified Prototypes 15 | . . . . . 1 . . . 1 1 1 . . . . . . . 3 2 1 1 1 . . . . . . 1 1 . 1 . . Parts Lost 60 | . 1 1 . 1 . 4 . 7 2 . . 8 . 1 . 2 . 4 . . 1 . . 1 . . . 8 . . . . 3 . 16 Power 10 | . . . . 1 . . . 1 . . . 1 . . . . . 1 . . 1 . . . . . . 2 . . . . . . 3 Propulsion 22 | . . 1 . . . 3 . 3 1 . . 5 . 1 . 1 . . . . . . . . . . . 2 . . . . 1 . 4 Utility 22 | . 1 . . . . . . 2 1 . . 1 . . . 1 . 2 . . . . . . . . . 3 . . . . 2 . 9 Weapon 6 | . . . . . . 1 . 1 . . . 1 . . . . . 1 . . . . . 1 . . . 1 . . . . . . . Highest Loss Streak 9 | . 1 1 . 1 . 4 . 5 2 . . 6 . 1 . 2 . 4 . . 1 . . 1 . . . 8 . . . . 2 . 9 To Critical Strikes . | . . . . . . . . . . . . . . . . . . . . . . . . . . . . . . . . . . . . Average Backups 4 | 1 1 3 4 5 4 5 5 5 4 5 3 4 5 5 4 5 4 4 5 5 4 5 4 5 5 5 4 4 5 5 5 5 4 5 5 Power . | . . . . . . . . . . . . . . . . . . . . . . . . . . . . . . . . . . . . Propulsion . | . . . . . . . . . . . . . . . . . . . . . . . . . . . . . . . . . . . . Utility 2 | 1 1 2 2 3 2 2 3 3 2 3 1 3 3 3 3 3 2 2 2 2 1 2 2 3 3 3 2 1 1 1 1 1 . 1 1 Weapon 1 | . . 1 1 2 2 2 1 1 1 1 1 . 1 1 1 1 1 1 2 2 2 1 1 1 1 1 1 2 3 3 3 3 3 3 3 Tool/Special . | . . . . . . . . . . . . . . . . . . . . . . . . . . . . . . . . . . . . Unused Backups 14 | . . . 1 1 1 . . . 1 . . . 1 . . . . 2 1 . . 1 1 . . 1 . . . . . . . . 3 Power 1 | . . . . . . . . . . . . . . . . . . 1 . . . . . . . . . . . . . . . . . Propulsion . | . . . . . . . . . . . . . . . . . . . . . . . . . . . . . . . . . . . . Utility 11 | . . . 1 1 . . . . 1 . . . 1 . . . . 1 1 . . 1 1 . . 1 . . . . . . . . 2 Weapon 1 | . . . . . . . . . . . . . . . . . . . . . . . . . . . . . . . . . . . 1 Tool/Special 1 | . . . . . 1 . . . . . . . . . . . . . . . . . . . . . . . . . . . . . . Average Slot Usage (%) 79 | . 76 91 100 88 93 88 84 66 41 49 80 84 65 80 28 56 76 88 69 83 91 88 86 89 88 88 80 81 95 95 85 93 91 82 83 Engine 2 | . 6 14 14 3 6 6 6 2 . . 3 6 . 1 . 8 13 12 8 5 . . . . . . . . . . . . . . . Core 1 | . . . . . . . . . . . . . . . . . . . . 5 10 11 5 5 5 5 4 . . . . . . . . Reactor 2 | . . . . . . . . . . . . . . . . . . . . . . . 4 5 5 5 4 8 9 9 8 8 8 8 7 Hover 10 | . 2 . . . . . . . 1 11 15 4 5 7 . 16 24 20 18 23 23 23 21 21 22 19 14 15 23 23 21 21 22 20 . Flight 8 | . 7 19 28 28 24 21 21 7 2 7 11 22 . . . 3 7 13 9 1 . . . . . . . . . . . 4 2 2 21 Device 13 | . 1 . . . 9 . 3 15 7 15 22 23 23 17 . 1 3 14 6 14 21 23 21 21 21 26 23 21 14 14 13 13 14 17 17 Processor 7 | . 11 14 14 14 9 9 9 7 . . 4 7 7 15 13 7 6 6 5 7 5 5 5 5 5 5 9 9 9 9 8 8 8 8 16 Hackware 13 | . 8 14 14 14 23 27 27 15 12 7 15 8 7 7 11 3 . . . . 4 5 12 15 14 10 9 9 27 28 25 24 21 13 10 Protection 2 | . . . . . . 7 . . . . . . . 3 . 4 7 13 11 12 11 5 5 5 5 5 4 2 . . . . 2 2 . Energy Gun 1 | . 14 12 . . . . . 2 1 . . . . . . 9 11 2 4 3 . . . . . . . 3 3 . . . . . . Energy Cannon 1 | . . . . . . . . . . . . . . . . . . . . 4 5 5 5 5 1 5 4 2 3 4 4 5 5 4 3 Ballistic Gun 3 | . 14 14 28 27 10 . . . 4 . . 3 . . . . 1 4 1 3 4 5 4 5 4 5 4 2 . . . . . . . Piercing Weapon 2 | . . . . . . 1 8 9 3 7 5 7 7 5 . . . . . . . . . . . . . . . . . . . . . Peak Build Rating 180 | 3 10 12 12 13 26 28 30 35 35 40 56 56 42 42 20 37 54 54 61 84 93 98 115 115 117 126 134 140 138 137 146 156 155 147 180 Average Rating 67 | 1 7 10 11 12 21 23 26 29 29 39 50 48 36 39 15 29 40 46 46 74 87 94 110 114 109 122 133 132 137 137 138 150 151 142 161 On Entrance 67 | 1 3 10 12 12 12 25 18 27 29 33 40 56 32 42 12 20 37 54 33 61 84 93 98 115 107 117 126 134 136 138 137 145 151 148 139 Avg Prop Armor Cover (%) 12 | . 20 . . . . . . . 18 23 19 14 10 6 33 13 8 11 14 2 . . . . . . . . . . 1 1 1 5 . Naked Turns . | . . . . . . . . . . . . . . . . . . . . . . . . . . . . . . . . . . . . Heaviest Build 64 | 2 3 5 3 6 12 14 8 17 16 11 15 18 13 15 1 10 16 16 18 54 57 53 53 52 54 54 54 64 40 37 39 44 60 56 51 Greatest Support 88 | 3 8 8 8 8 15 15 15 20 11 11 16 24 36 30 3 32 32 18 42 59 71 71 59 59 61 73 73 76 76 76 76 76 88 88 58 Greatest Overweight (x) 3 | . . 1 . . . . . 3 3 . 1 3 3 3 . . . . 1 . 1 . . . . . . 1 . . . . . 1 . Average Overweight (x) . | . . . . . . . . 1 . . . . . . . . . . . . . . . . . . . . . . . . . . . Largest Inventory Capacity 5 | 5 5 5 5 5 5 5 5 5 5 5 5 5 5 5 5 5 5 5 5 5 5 5 5 5 5 5 5 5 5 5 5 5 5 5 5 Average Capacity 5 | 5 5 5 5 5 5 5 5 5 5 5 5 5 5 5 5 5 5 5 5 5 5 5 5 5 5 5 5 5 5 5 5 5 5 5 5 Most Carried 5 | 1 2 5 5 5 5 5 5 5 5 5 5 5 5 5 5 5 5 5 5 5 5 5 5 5 5 5 5 5 5 5 5 5 5 5 5 Average Carried 4 | 1 1 4 4 5 4 5 4 4 4 5 3 4 5 5 4 5 4 4 4 5 4 5 4 5 4 4 4 4 4 5 5 5 4 5 4 Final Capacity 5 | 5 5 5 5 5 5 5 5 5 5 5 5 5 5 5 5 5 5 5 5 5 5 5 5 5 5 5 5 5 5 5 5 5 5 5 5 Final Carried 5 | 1 2 5 5 5 5 5 5 5 5 5 5 5 5 5 5 5 4 5 5 5 5 5 5 5 5 5 5 5 5 5 5 5 5 5 5 Class Distribution -------------------- 28% | Hacker-Mutant 17% | Mutant 13% | Hacker-Scout 11% | Scavenger-Mutant 6% | Infiltrator-Scout 5% | Hacker-Sprinter 3% | Assassin Dominant Class ---------------- Mutant | -10/Materials Mutant | -10/Mines Scavenger-Mutant | -10/Exiles Scavenger-Mutant | -9/Mines Hacker-Scout | -8/Materials Hacker-Mutant | -8/Garrison Hacker-Mutant | -8/Materials Assassin | -8/Garrison Hacker-Mutant | -7/Factory Mutant | -7/Waste Hacker-Mutant | -7/Factory Scavenger-Sprinter | -7/Garrison Mutant | -7/Factory Scavenger-Assassin | -7/DSF Hacker-Mutant | -6/Factory Mutant | -6/Waste Mutant | -6/Factory Scout | -6/DSF Mutant | -5/Factory Mutant | -5/Waste Infiltrator-Scout | -5/Factory Infiltrator-Scout | -5/DSF Hacker-Scout | -4/Factory Hacker-Scout | -4/Waste Hacker-Ninja | -4/Factory Hacker-Scout | -4/DSF Hacker-Scout | -3/Research Hacker-Scout | -3/Garrison Hacker-Mutant | -3/Research Hacker-Mutant | -3/DSF Hacker-Mutant | -2/Research Hacker-Mutant | -2/Garrison Hacker-Mutant | -2/Research Hacker-Mutant | -2/DSF Infiltrator-Sprinter | -1/Access Resources | -11 -10 -10 -10 -9 -8 -8 -8 -8 -7 -7 -7 -7 -7 -7 -6 -6 -6 -6 -5 -5 -5 -5 -4 -4 -4 -4 -3 -3 -3 -3 -2 -2 -2 -2 -1 ----------- Run | Yrd Mat Min Exi Min Mat Gar Mat Gar Fac Was Fac Gar Fac DSF Fac Was Fac DSF Fac Was Fac DSF Fac Was Fac DSF Res Gar Res DSF Res Gar Res DSF Acc Matter Collected 3550 | 201 107 53 20 60 219 83 116 113 109 . 270 36 103 8 30 107 60 . 185 64 224 . . . 347 . . 295 . 2 106 192 280 10 150 Remotely . | . . . . . . . . . . . . . . . . . . . . . . . . . . . . . . . . . . . . Salvage Created 4289 | . 166 89 . 6 218 29 216 159 109 . 448 70 173 . . . 88 . 120 . 411 . . . 390 . . 714 . . . 105 552 95 131 Parts 271 | . 12 7 . 4 21 3 23 9 5 . 32 5 8 . . . 4 . 2 . 30 . . . 24 . . 29 . . . 4 35 3 11 Haulers Intercepted 3 | . 1 . . . 1 . . . . . . . . . . . . . 1 . . . . . . . . . . . . . . . . Recyclers Shooed 2 | . . 1 . . . . . . . . . . . . . . . . . . . . . . 1 . . . . . . . . . . Parts Field Recycled . | . . . . . . . . . . . . . . . . . . . . . . . . . . . . . . . . . . . . Retrieved Matter . | . . . . . . . . . . . . . . . . . . . . . . . . . . . . . . . . . . . . Parts Self-Destructed . | . . . . . . . . . . . . . . . . . . . . . . . . . . . . . . . . . . . . Prevented . | . . . . . . . . . . . . . . . . . . . . . . . . . . . . . . . . . . . . Parts Restored . | . . . . . . . . . . . . . . . . . . . . . . . . . . . . . . . . . . . . Kills | -11 -10 -10 -10 -9 -8 -8 -8 -8 -7 -7 -7 -7 -7 -7 -6 -6 -6 -6 -5 -5 -5 -5 -4 -4 -4 -4 -3 -3 -3 -3 -2 -2 -2 -2 -1 ------- Run | Yrd Mat Min Exi Min Mat Gar Mat Gar Fac Was Fac Gar Fac DSF Fac Was Fac DSF Fac Was Fac DSF Fac Was Fac DSF Res Gar Res DSF Res Gar Res DSF Acc Combat Hostiles Destroyed 60 | . 4 3 . 4 6 4 5 3 1 . 2 3 . . . . . . . . 4 . . . 2 . . 9 . . . 1 6 1 2 Melee 12 | . . . . . . . 2 3 1 . 2 3 . . . . . . . . . . . . . . . . . . . . 1 . . Guns 10 | . 4 . . . 1 . . . . . . . . . . . . . . . . . . . 2 . . 3 . . . . . . . Cannons 11 | . . . . . . . . . . . . . . . . . . . . . 4 . . . . . . 3 . . . . 2 . 2 AOE 19 | . . 3 . 4 5 4 3 . . . . . . . . . . . . . . . . . . . . . . . . . . . . Classes Destroyed 15 | . 5 1 . . 1 . 3 1 1 . 1 . . . . . . . . . . . . . . . . 1 . . . . . 1 . Worker 16 | . 1 . . . 3 . 4 . . . 4 . 4 . . . . . . . . . . . . . . . . . . . . . . Builder 8 | . . . . . . . 1 . . . 3 . . . . . . . . . 1 . . . 2 . . . . . . . 1 . . Tunneler 1 | . . . . . . . 1 . . . . . . . . . . . . . . . . . . . . . . . . . . . . Hauler 3 | . 1 . . . 1 . . . . . . . . . . . . . 1 . . . . . . . . . . . . . . . . Recycler 6 | . . 1 . . 1 . . . . . 2 . 1 . . . . . . . . . . . 1 . . . . . . . . . . Operator 4 | . 1 . . . . . 1 . . . 1 . . . . . . . . . . . . . . . . . . . . . 1 . . Watcher 9 | . . . . . 1 . 1 . 2 . 2 . 1 . . . . . . . 1 . . . 1 . . . . . . . . . . Swarmer 27 | . 3 3 . 4 6 4 4 . . . . 3 . . . . . . . . . . . . . . . . . . . . . . . Grunt 8 | . 1 . . . . . . 1 . . . . . . . . . . . . 1 . . . . . . 5 . . . . . . . Brawler 2 | . . . . . . . 1 1 . . . . . . . . . . . . . . . . . . . . . . . . . . . Duelist 1 | . . . . . . . . . . . . . . . . . . . . . . . . . . . . 1 . . . . . . . Sentry 8 | . . . . . . . . 1 . . . . . . . . . . . . 1 . . . 2 . . . . . . 1 3 . . Specialist 1 | . . . . . . . . . . . . . . . . . . . . . . . . . . . . . . . . . . 1 . Hunter 1 | . . . . . . . . . . . 1 . . . . . . . . . . . . . . . . . . . . . . . . Programmer 12 | . . . . . . . . . 1 . 1 . . . . . . . . . 2 . . . . . . 3 . . . . 3 . 2 Wasp 5 | . . . . . . . . . . . . . . . . . 3 . . . 2 . . . . . . . . . . . . . . Best Kill Streak 6 | . 2 4 . 4 6 4 6 1 1 . 5 2 3 . . . . . 1 . 2 . . . 3 . . 2 . . . 1 2 2 2 Combat Bots Only 4 | . 2 3 . 4 4 4 2 1 1 . 1 2 . . . . . . . . 2 . . . 2 . . 2 . . . 1 2 2 2 Max Kills in Single Turn 4 | . 1 2 . 2 4 4 2 1 1 . 1 1 1 . . . 1 . 1 . 1 . . . 1 . . 1 . . . 1 1 1 1 Gunslinging . | . . . . . . . . . . . . . . . . . . . . . . . . . . . . . . . . . . . . Exploded 4 | . . 2 . 2 3 4 1 . . . . . . . . . . . . . . . . . . . . . . . . . . . . Melee 1 | . . . . . . . 1 1 1 . 1 1 . . . . . . . . . . . . . . . . . . . . 1 . . Uniques/NPCs Destroyed . | . . . . . . . . . . . . . . . . . . . . . . . . . . . . . . . . . . . . Combat | -11 -10 -10 -10 -9 -8 -8 -8 -8 -7 -7 -7 -7 -7 -7 -6 -6 -6 -6 -5 -5 -5 -5 -4 -4 -4 -4 -3 -3 -3 -3 -2 -2 -2 -2 -1 -------- Run | Yrd Mat Min Exi Min Mat Gar Mat Gar Fac Was Fac Gar Fac DSF Fac Was Fac DSF Fac Was Fac DSF Fac Was Fac DSF Res Gar Res DSF Res Gar Res DSF Acc Hostile Shots Fired 864 | . 30 12 . 13 17 102 8 48 10 . 14 72 . 14 9 2 . 25 4 . 27 1 13 1 8 42 . 87 . 1 . 9 28 49 218 Missed 361 | . 8 5 . 4 14 39 4 10 2 . 2 26 . 2 5 . . 14 2 . 10 1 7 . 2 31 . 21 . . . 4 4 22 122 Hits 503 | . 22 7 . 9 3 63 4 38 8 . 12 46 . 12 4 2 . 11 2 . 17 . 6 1 6 11 . 66 . 1 . 5 24 27 96 Melee 17 | . . . . . . . . . . . . . . 11 . 2 . . . . . . . 1 . . . 2 . . . . . . 1 Projectile 486 | . 22 7 . 9 3 63 4 38 8 . 12 46 . 1 4 . . 11 2 . 17 . 6 . 6 11 . 64 . 1 . 5 24 27 95 AOE 1 | . . . . . . . . . . . . . . . . . . . . . . . . . . . . . . . . . . . 1 Critical Strikes 30 | . 1 . . . . . . 2 1 . . 1 . 9 . 1 . 2 . . . . . 1 1 . . 8 . . . . . . 3 Actively Blocked 5 | . . . . . . . . . . . . . . . . . . . . . . . . . . . . 2 . . . . . . 3 Part Disruptions 1 | . . . . . . . . 1 . . . . . . . . . . . . . . . . . . . . . . . . . . . Damage Taken 9044 | . 187 103 . 106 37 534 29 570 121 15 154 658 . 243 28 67 . 257 37 . 596 . 128 52 148 206 . 1381 . 81 . 157 583 282 2284 Core 2521 | . 69 32 . 23 . 249 23 268 73 . 78 239 . 130 28 67 . 16 . . 40 . 25 . . 7 . 283 . 81 . 60 54 30 646 Absorbed by Shields 176 | . . . . . . 61 . . . . . 66 . . . . . . . . . . . . . . . 12 . . . . . . 37 Redirected to Shielding 100 | . . . . . . . . . . . . . . . . . . 44 12 . 44 . . . . . . . . . . . . . . Regen/Repaired (Parts) 94 | . . . . . . . . . . . . . . . . . . . . 94 . . . . . . . . . . . . . . . Core Remaining (%) 67 | 100 . . . 50 . . . 1 . . . . . 25 . . . 86 . . . 96 . . . 97 . . . 72 . . . 90 59 Volleys Fired 400 | . 32 5 . 2 12 2 2 . 10 . . 3 . . . . 20 1 6 . 53 4 12 . 28 5 . 47 16 5 11 13 38 4 69 Largest 2 | . 2 2 . 1 2 1 1 . 2 . . 1 . . . . 2 1 1 . 2 1 2 . 2 1 . 2 1 1 1 1 2 1 1 Hottest 233 | . 60 60 . 30 46 30 30 . 83 . . 23 . . . . 80 90 33 . 226 113 146 . 153 120 . 153 113 113 113 113 233 94 113 Shots Fired 518 | . 64 8 . 2 18 2 2 . 14 . . 3 . . . . 40 1 6 . 73 4 17 . 34 5 . 64 16 5 11 13 43 4 69 Gun 231 | . 64 6 . . 15 . . . 13 . . 3 . . . . 40 . 6 . 21 . 5 . 28 . . 30 . . . . . . . Cannon 234 | . . . . . . . . . . . . . . . . . . 1 . . 52 4 12 . 6 5 . 34 10 5 3 13 35 4 50 Launcher 11 | . . 2 . 2 3 2 2 . . . . . . . . . . . . . . . . . . . . . . . . . . . . Special 42 | . . . . . . . . . 1 . . . . . . . . . . . . . . . . . . . 6 . 8 . 8 . 19 Kinetic 142 | . 32 3 . . 15 . . . 12 . . 3 . . . . . . 6 . 21 . 5 . 28 . . 17 . . . . . . . Thermal 290 | . 32 3 . . . . . . . . . . . . . . 40 1 . . 52 4 12 . 6 5 . 32 10 5 3 10 25 . 50 Explosive 11 | . . 2 . 2 3 2 2 . . . . . . . . . . . . . . . . . . . . . . . . . . . . Electromagnetic 33 | . . . . . . . . . 1 . . . . . . . . . . . . . . . . . . 15 . . . 3 10 4 . Robot Hit Streak 13 | . 6 1 . . 6 . . . 3 . . 5 . . . . 6 . 10 . 11 . 6 . 13 . . 9 6 . 5 4 8 6 8 Robot Miss Streak 7 | . 3 2 . . 4 . . . 7 . . . . . . . 4 . . . 3 . 2 . 2 . . 2 1 . 1 . 2 1 3 Penetration Max 1 | . . . . . . . . . . . . . . . . . . . . . 1 . . . 1 . . 1 . . . . . . . Secondary Targets . | . . . . . . . . . . . . . . . . . . . . . . . . . . . . . . . . . . . . Shots Hit Robots 293 | . 37 2 . . 10 . 8 15 14 . 16 7 6 . 2 . 19 . 6 . 31 . 8 . 18 . . 33 5 . 6 3 22 4 21 Core Hits 146 | . 12 5 . 4 13 3 15 5 6 . 8 3 3 . . . 8 . 3 . 14 . 1 . 13 . . 18 . . . 1 7 1 3 Critical Kills 8 | . . . . . . . . . . . . . . . . . . . 1 . 1 . . . 4 . . 2 . . . . . . . Critical Parts Destroyed 10 | . 1 . . . . . . . . . . . . . . . . . 2 . 4 . . . 1 . . 2 . . . . . . . Critical Strikes 27 | . 1 . . . . . 1 1 1 . 2 . 1 . . . . . 3 . 5 . . . 5 . . 4 . . . 1 2 . . Meltdown 1 | . . . . . . . . . . . . . . . . . . . . . . . . . . . . 1 . . . . . . . Destroy 17 | . 1 . . . . . . . . . . . . . . . . . 3 . 5 . . . 5 . . 3 . . . . . . . Corrupt 2 | . . . . . . . . . . . . . . . . . . . . . . . . . . . . . . . . 1 1 . . Sever 1 | . . . . . . . . . . . . . . . . . . . . . . . . . . . . . . . . . 1 . . Impale 6 | . . . . . . . 1 1 1 . 2 . 1 . . . . . . . . . . . . . . . . . . . . . . Melee Attacks 127 | . . . . . 5 7 10 34 5 . 25 14 6 5 2 . . . 1 . 1 . 1 . 2 . . . . . . . 8 1 . Impact 12 | . . . . . 5 7 . . . . . . . . . . . . . . . . . . . . . . . . . . . . . Slashing 9 | . . . . . . . . . . . . . . . . . . . . . . . . . . . . . . . . . 8 1 . Piercing 98 | . . . . . . . 9 34 5 . 25 14 6 5 . . . . . . . . . . . . . . . . . . . . . Sneak Attacks 38 | . . . . . 2 . 6 1 . . 12 1 6 . 2 . . . 1 . 1 . 1 . 2 . . . . . . . 2 1 . Combat Hostiles 2 | . . . . . . . 1 . . . . 1 . . . . . . . . . . . . . . . . . . . . . . . Follow-up Attacks . | . . . . . . . . . . . . . . . . . . . . . . . . . . . . . . . . . . . . Damage Inflicted 9237 | . 361 173 . 233 665 163 1147 520 301 . 985 224 405 . . . 263 . 32 . 782 . 178 . 234 . . 1005 . . . 102 900 213 351 Guns 1645 | . 361 26 . . 160 . . . 125 . . 26 . . . . 263 . 32 . 116 . 20 . 110 . . 406 . . . . . . . Cannons 2668 | . . . . . . . . . . . . . . . . . . . . . 657 . 158 . 124 . . 599 . . . 102 570 107 351 Explosions 1596 | . . 147 . 233 358 163 695 . . . . . . . . . . . . . . . . . . . . . . . . . . . . Melee 3319 | . . . . . 147 . 452 520 176 . 985 198 405 . . . . . . . . . . . . . . . . . . . 330 106 . Ramming 9 | . . . . . . . . . . . . . . . . . . . . . 9 . . . . . . . . . . . . . . Kinetic 813 | . 123 16 . . 160 . . . 91 . . 26 . . . . . . 32 . 116 . 20 . 110 . . 119 . . . . . . . Thermal 2792 | . 238 10 . . . . 220 . . . . . . . . . 263 . . . 657 . 158 . 124 . . 515 . . . . 256 . 351 Explosive 1085 | . . 147 . 233 358 163 184 . . . . . . . . . . . . . . . . . . . . . . . . . . . . Electromagnetic 1219 | . . . . . . . 291 . 34 . . . . . . . . . . . . . . . . . . 371 . . . 102 314 107 . Impact 147 | . . . . . 147 . . . . . . . . . . . . . . . . . . . . . . . . . . . . . . Slashing 436 | . . . . . . . . . . . . . . . . . . . . . . . . . . . . . . . . . 330 106 . Piercing 2736 | . . . . . . . 452 520 176 . 985 198 405 . . . . . . . . . . . . . . . . . . . . . . Highest Corruption 13 | . . . . . . . . 4 5 13 13 13 13 11 . . . . . . 1 . . . . . . . . . . . . . . Average Corruption 8 | . . . . . . . . 3 2 8 13 13 12 11 . . . . . . 1 . . . . . . . . . . . . . . Corruption Purged 3 | . . . . . . . . . . . . . 2 . . . . . . . 1 . . . . . . . . . . . . . . Corruption Blocked 15 | . . . . . . . . . . . . . . . . . . . . . . . . . . . . 7 . . . . 4 . 4 Effects 76 | . . . . . . . . 15 3 3 24 11 13 6 . . . . . . 1 . . . . . . . . . . . . . . Message Errors 13 | . . . . . . . . 1 . . 3 2 5 2 . . . . . . . . . . . . . . . . . . . . . Matter Fused 27 | . . . . . . . . 6 3 . 9 6 2 1 . . . . . . . . . . . . . . . . . . . . . Heat Flow Errors 10 | . . . . . . . . 4 . . 3 . 2 1 . . . . . . . . . . . . . . . . . . . . . Energy Discharges 9 | . . . . . . . . 1 . . 4 2 1 1 . . . . . . . . . . . . . . . . . . . . . Data Loss (minor) 10 | . . . . . . . . 3 . 1 2 . 3 1 . . . . . . . . . . . . . . . . . . . . . Data Loss (major) 2 | . . . . . . . . . . . 2 . . . . . . . . . . . . . . . . . . . . . . . . Misfires 1 | . . . . . . . . . . . . . . . . . . . . . 1 . . . . . . . . . . . . . . Alerts 1 | . . . . . . . . . . . 1 . . . . . . . . . . . . . . . . . . . . . . . . Misdirections 3 | . . . . . . . . . . 2 . 1 . . . . . . . . . . . . . . . . . . . . . . . Overload Shots . | . . . . . . . . . . . . . . . . . . . . . . . . . . . . . . . . . . . . Overflow Damage 813 | . . . . . 151 14 129 17 60 . 238 14 81 . . . . . . . 16 . . . . . . 36 . . . . 57 . . Projectiles 52 | . . . . . . . . . . . . . . . . . . . . . 16 . . . . . . 36 . . . . . . . Explosions 80 | . . . . . 59 14 7 . . . . . . . . . . . . . . . . . . . . . . . . . . . . Melee 681 | . . . . . 92 . 122 17 60 . 238 14 81 . . . . . . . . . . . . . . . . . . . 57 . . Knockbacks 2 | . . . . . 2 . . . . . . . . . . . . . . . . . . . . . . . . . . . . . . Impact 2 | . . . . . 2 . . . . . . . . . . . . . . . . . . . . . . . . . . . . . . Kinetic . | . . . . . . . . . . . . . . . . . . . . . . . . . . . . . . . . . . . . Secondary . | . . . . . . . . . . . . . . . . . . . . . . . . . . . . . . . . . . . . Self-Inflicted Damage 65 | . . 32 . . . 29 . . . . . . . . . . . . . . 4 . . . . . . . . . . . . . . Shots 2 | . . 1 . . . 1 . . . . . . . . . . . . . . . . . . . . . . . . . . . . . Rammed 1 | . . . . . . . . . . . . . . . . . . . . . 1 . . . . . . . . . . . . . . Targets Rammed 1 | . . . . . . . . . . . . . . . . . . . . . 1 . . . . . . . . . . . . . . Kicked . | . . . . . . . . . . . . . . . . . . . . . . . . . . . . . . . . . . . . Crushed . | . . . . . . . . . . . . . . . . . . . . . . . . . . . . . . . . . . . . Highest Temperature 296 | . 32 20 . . 1 . . 267 . . 120 5 194 47 . . 118 . . . 198 . 44 . 132 4 . 266 68 12 38 46 296 . 25 Average Temperature 51 | . 13 14 . . 1 . . 117 . . 57 5 94 47 . . 59 . . . 50 . 17 . 57 4 . 70 30 6 23 23 89 . 11 Received Heat Transfer 1066 | . 36 33 . 48 18 36 . 108 . . 18 45 . . 6 . . 18 18 . 54 . 30 . 18 . . 379 . . . 27 27 . 147 Effects 1 | . . . . . . . . . . . . . . . . . . . . . . . . . . . . . . . . . 1 . . Energy Bleed 1 | . . . . . . . . . . . . . . . . . . . . . . . . . . . . . . . . . 1 . . Siege Activations . | . . . . . . . . . . . . . . . . . . . . . . . . . . . . . . . . . . . . Martial Activations . | . . . . . . . . . . . . . . . . . . . . . . . . . . . . . . . . . . . . Shielding Activations . | . . . . . . . . . . . . . . . . . . . . . . . . . . . . . . . . . . . . Robots Disrupted . | . . . . . . . . . . . . . . . . . . . . . . . . . . . . . . . . . . . . Combat Hostiles . | . . . . . . . . . . . . . . . . . . . . . . . . . . . . . . . . . . . . Robots Corrupted 9 | . . . . . 1 . 1 . . . . . . . . . . . . . . . . . . . . 2 . . . 1 3 1 . Combat Hostiles 7 | . . . . . . . . . . . . . . . . . . . . . . . . . . . . 2 . . . 1 3 1 . Parts Fried 11 | . . . . . 1 . 1 . . . . . . . . . . . . . . . . . . . . 3 . . . 1 4 1 . Impact Corruptions 3 | . . . . . 3 . . . . . . . . . . . . . . . . . . . . . . . . . . . . . . Robots Melted 1 | . . . . . . . . . . . . . . . . . . . . . . . . . . . . 1 . . . . . . . Combat Hostiles 1 | . . . . . . . . . . . . . . . . . . . . . . . . . . . . 1 . . . . . . . Parts Melted 5 | . . . . . . . . . . . . . . . . . . . . . 1 . . . . . . 4 . . . . . . . Heat Transferred 3142 | . 525 25 . . . . 150 . . . . . . . . . 740 . . . 592 . 148 . 111 . . 407 . . . . 185 . 259 Parts Sabotaged . | . . . . . . . . . . . . . . . . . . . . . . . . . . . . . . . . . . . . Parts Stolen . | . . . . . . . . . . . . . . . . . . . . . . . . . . . . . . . . . . . . Parts Stripped . | . . . . . . . . . . . . . . . . . . . . . . . . . . . . . . . . . . . . Power Chain Reactions 1 | . . . . . . . . . 1 . . . . . . . . . . . . . . . . . . . . . . . . . . Alert | -11 -10 -10 -10 -9 -8 -8 -8 -8 -7 -7 -7 -7 -7 -7 -6 -6 -6 -6 -5 -5 -5 -5 -4 -4 -4 -4 -3 -3 -3 -3 -2 -2 -2 -2 -1 ------- Run | Yrd Mat Min Exi Min Mat Gar Mat Gar Fac Was Fac Gar Fac DSF Fac Was Fac DSF Fac Was Fac DSF Fac Was Fac DSF Res Gar Res DSF Res Gar Res DSF Acc Maximum Alert Level 2 | . . . . 1 1 1 2 2 1 . . . . . . . . . . . . . . . . . . 1 . . . . . . . Low Security (%) 85 | 100 100 100 . 96 95 85 17 . 93 100 100 100 100 100 100 100 100 100 100 100 100 100 100 100 100 100 100 79 100 100 100 100 100 100 100 Level 1 9 | . . . . 3 4 14 78 51 6 . . . . . . . . . . . . . . . . . . 20 . . . . . . . Level 2 5 | . . . . . . . 4 48 . . . . . . . . . . . . . . . . . . . . . . . . . . . Level 3 . | . . . . . . . . . . . . . . . . . . . . . . . . . . . . . . . . . . . . Level 4 . | . . . . . . . . . . . . . . . . . . . . . . . . . . . . . . . . . . . . Level 5 . | . . . . . . . . . . . . . . . . . . . . . . . . . . . . . . . . . . . . High Security . | . . . . . . . . . . . . . . . . . . . . . . . . . . . . . . . . . . . . Max Security . | . . . . . . . . . . . . . . . . . . . . . . . . . . . . . . . . . . . . Peak Influence 455 | . 150 149 . 205 243 264 414 455 212 22 53 132 42 15 32 15 . 3 21 1 48 23 60 14 61 58 32 216 121 25 22 99 110 77 63 Initial 262 | . . 58 . . 64 . 128 262 212 17 15 17 42 2 7 . . 3 . 1 . . 11 14 . 35 32 . 121 . 13 . 49 42 45 Average 83 | . 52 85 . 128 62 117 275 386 85 16 13 101 7 2 6 . . . 3 . 9 6 11 8 13 42 18 117 49 7 7 74 48 57 25 Influence Increases 4170 | . 242 161 . 285 426 304 376 254 94 15 208 145 36 17 32 17 5 . 32 . 182 23 110 . 134 23 5 296 41 25 25 99 231 35 292 Destroy 0b10 Robot/C 1380 | . 80 60 . 120 220 80 100 60 20 . 40 60 . . 20 . . . . . 80 . . . 40 . . 180 . . . 20 120 20 60 Destroy 0b10 Robot/NC 230 | . 15 5 . . 30 . 40 . 10 . 60 . 30 . . . . . 5 . 10 . . . 20 . . . . . . . 5 . . Destroy Leader 324 | . 12 10 . 20 54 10 32 . 14 . 24 10 2 . 10 . . . 2 . 22 . . . 22 . . 30 . . . . 40 . 10 Allied During Kill 65 | . . . . 11 46 . . 3 . . . . . . 2 . . . . . . . . . . . . . . . . . . . 3 Successful Hack 284 | . 15 . . . 7 . 16 16 . . 36 . 4 . . . 5 . 6 . . . 6 . 42 . 5 14 21 . 16 . . . 75 Select Force Hacks 50 | . . . . . . . . . 50 . . . . . . . . . . . . . . . . . . . . . . . . . . Disable Machine 105 | . . 15 . 15 . . 45 . . . 15 . . . . . . . . . . . 15 . . . . . . . . . . . . Anti-Garrison Action 300 | . . . . . . 50 . 150 . . . . . . . . . . . . . . . . . . . 50 . . . 50 . . . Destroy Structure 502 | . . 11 . 14 24 14 38 25 . . 3 15 . 2 . 17 . . 4 . 70 8 14 . 10 8 . 22 20 10 9 29 51 . 84 Partial Spotted 105 | . . . . . . 30 15 . . 15 . . . . . . . . 15 . . . . . . . . . . . . . . . 30 Lose Combat Pursuer 825 | . 120 60 . 105 45 120 90 . . . 30 60 . 15 . . . . . . . 15 75 . . 15 . . . 15 . . 15 15 30 Influence Decreases 4146 | . 92 192 119 120 591 40 236 252 450 43 205 88 114 6 47 17 . 5 28 4 182 . 91 42 83 16 63 80 257 . 50 10 263 15 345 Entered New Map 1163 | . . 92 119 . 101 . 136 142 194 33 7 8 40 2 8 . . 2 . 3 . . 12 28 . 16 26 . 95 . 12 . 40 15 32 Time Decay 2217 | . 92 90 . 110 230 . 100 . 243 10 198 . 74 . 39 11 . . 28 1 182 . 79 10 83 . 37 . 162 . 38 . 193 . 207 Lost Part 430 | . . 10 . 10 . 40 . 70 13 . . 80 . 4 . . . 3 . . . . . 4 . . . 80 . . . . 30 . 86 Lost Ally 186 | . . . . . 110 . . 40 . . . . . . . 6 . . . . . . . . . . . . . . . 10 . . 20 Purge Threat 150 | . . . . . 150 . . . . . . . . . . . . . . . . . . . . . . . . . . . . . . Squads Dispatched 29 | . 1 . . . 1 . 1 . 5 . 4 . 1 1 . . . 1 1 . 2 . 1 . . . . . 2 1 . . 2 . 5 Investigation 5 | . . . . . . . . . 2 . 2 . . . . . . . . . . . . . . . . . . . . . . . 1 Extermination 12 | . . . . . . . . . 2 . 1 . 1 . . . . . . . 2 . . . . . . . 2 . . . 2 . 2 Reinforcement 12 | . 1 . . . 1 . 1 . 1 . 1 . . 1 . . . 1 1 . . . 1 . . . . . . 1 . . . . 2 Assault . | . . . . . . . . . . . . . . . . . . . . . . . . . . . . . . . . . . . . Garrison . | . . . . . . . . . . . . . . . . . . . . . . . . . . . . . . . . . . . . Intercept . | . . . . . . . . . . . . . . . . . . . . . . . . . . . . . . . . . . . . Searches Triggered . | . . . . . . . . . . . . . . . . . . . . . . . . . . . . . . . . . . . . Unchained Authorized 4 | . . . . . . . . . . . . . . . . . . . . . . . 1 . . . . . 1 . 1 . . . 1 Construction Impeded 1 | . . . . . . . 1 . . . . . . . . . . . . . . . . . . . . . . . . . . . . Haulers Reinforced 2 | . . . . . . . . . . . . . . . . . . . 1 . . . 1 . . . . . . . . . . . . Active Scanning Responses . | . . . . . . . . . . . . . . . . . . . . . . . . . . . . . . . . . . . . Cargo Convoy Interrupts . | . . . . . . . . . . . . . . . . . . . . . . . . . . . . . . . . . . . . Stealth | -11 -10 -10 -10 -9 -8 -8 -8 -8 -7 -7 -7 -7 -7 -7 -6 -6 -6 -6 -5 -5 -5 -5 -4 -4 -4 -4 -3 -3 -3 -3 -2 -2 -2 -2 -1 --------- Run | Yrd Mat Min Exi Min Mat Gar Mat Gar Fac Was Fac Gar Fac DSF Fac Was Fac DSF Fac Was Fac DSF Fac Was Fac DSF Res Gar Res DSF Res Gar Res DSF Acc Distress Signals 7 | . . . . . 1 1 . . 2 . . . . . . . . . . . . . . . . . . . . . . . . . 3 Communications Jammed 25 | . . . . . . . . . . . 2 . . . . . . . . . 6 . 8 . 1 . . . . . . . . . 8 Distress Signals 24 | . . . . . . . . . . . 2 . . . . . . . . . 6 . 8 . 1 . . . . . . . . . 7 Times Spotted 298 | . 14 9 . 10 18 28 8 9 15 5 10 15 . 4 1 6 . 2 4 . 5 1 10 5 3 2 . 10 3 1 3 2 7 2 86 Peak Tracking Total 50 | . 5 3 . 9 7 20 4 5 7 5 2 10 . 4 1 6 . 2 3 . 2 1 5 5 1 2 . 5 2 1 2 1 2 1 50 Tactical Retreats 33 | . 3 2 . 2 1 3 3 . . . 2 2 . 1 . . . . . . . 1 2 . . 1 . . . 1 . . 1 1 7 ECM-based Alert Blocks 25 | . . . . . . . . . . . . . . . . . . . . . . . . . . . . . . . . . . . 25 Traps | -11 -10 -10 -10 -9 -8 -8 -8 -8 -7 -7 -7 -7 -7 -7 -6 -6 -6 -6 -5 -5 -5 -5 -4 -4 -4 -4 -3 -3 -3 -3 -2 -2 -2 -2 -1 ------- Run | Yrd Mat Min Exi Min Mat Gar Mat Gar Fac Was Fac Gar Fac DSF Fac Was Fac DSF Fac Was Fac DSF Fac Was Fac DSF Res Gar Res DSF Res Gar Res DSF Acc Traps Triggered 26 | . . . . . . 2 . 2 1 . 1 4 . 1 1 . . . 1 . 4 1 1 . . 1 . 3 . . 1 . . . 2 Indirectly . | . . . . . . . . . . . . . . . . . . . . . . . . . . . . . . . . . . . . Trap Hack Attempts . | . . . . . . . . . . . . . . . . . . . . . . . . . . . . . . . . . . . . Triggered . | . . . . . . . . . . . . . . . . . . . . . . . . . . . . . . . . . . . . Disarmed . | . . . . . . . . . . . . . . . . . . . . . . . . . . . . . . . . . . . . Reprogrammed . | . . . . . . . . . . . . . . . . . . . . . . . . . . . . . . . . . . . . Reused . | . . . . . . . . . . . . . . . . . . . . . . . . . . . . . . . . . . . . Traps Extracted . | . . . . . . . . . . . . . . . . . . . . . . . . . . . . . . . . . . . . Installed . | . . . . . . . . . . . . . . . . . . . . . . . . . . . . . . . . . . . . Triggered . | . . . . . . . . . . . . . . . . . . . . . . . . . . . . . . . . . . . . Objects Rigged 3 | . . . . . . . 3 . . . . . . . . . . . . . . . . . . . . . . . . . . . . Exploded 3 | . . . . . . . 3 . . . . . . . . . . . . . . . . . . . . . . . . . . . . Machines | -11 -10 -10 -10 -9 -8 -8 -8 -8 -7 -7 -7 -7 -7 -7 -6 -6 -6 -6 -5 -5 -5 -5 -4 -4 -4 -4 -3 -3 -3 -3 -2 -2 -2 -2 -1 ---------- Run | Yrd Mat Min Exi Min Mat Gar Mat Gar Fac Was Fac Gar Fac DSF Fac Was Fac DSF Fac Was Fac DSF Fac Was Fac DSF Res Gar Res DSF Res Gar Res DSF Acc Machines Disabled 10 | . . 1 . 1 . . 3 1 . . 1 . . . . . . . . . . . 1 . . . . 1 . . . 1 . . . Max in Single Turn 2 | . . 1 . 1 . . 2 1 . . 1 . . . . . . . . . . . 1 . . . . 1 . . . 1 . . . Garrison Access 6 | . . . . . . . . . . . . . . . . . . . . . 1 . . . . . . . . . . . 1 . 4 Garrison Relay 3 | . . . . . . . . 1 . . . . . . . . . . . . . . . . . . . 1 . . . 1 . . . Machines Repaired . | . . . . . . . . . . . . . . . . . . . . . . . . . . . . . . . . . . . . Machines Dismantled . | . . . . . . . . . . . . . . . . . . . . . . . . . . . . . . . . . . . . Machines Sabotaged . | . . . . . . . . . . . . . . . . . . . . . . . . . . . . . . . . . . . . Overloaded Fab Kills . | . . . . . . . . . . . . . . . . . . . . . . . . . . . . . . . . . . . . Hacking | -11 -10 -10 -10 -9 -8 -8 -8 -8 -7 -7 -7 -7 -7 -7 -6 -6 -6 -6 -5 -5 -5 -5 -4 -4 -4 -4 -3 -3 -3 -3 -2 -2 -2 -2 -1 --------- Run | Yrd Mat Min Exi Min Mat Gar Mat Gar Fac Was Fac Gar Fac DSF Fac Was Fac DSF Fac Was Fac DSF Fac Was Fac DSF Res Gar Res DSF Res Gar Res DSF Acc Machines Accessed 83 | . 6 1 2 . 10 1 6 2 2 . 7 . 2 . . . 1 . 4 . 3 . 2 . 4 . 2 2 3 . 3 1 5 . 14 Terminals 49 | . 5 . . . 7 1 5 2 1 . 4 . 1 . . . 1 . 1 . 1 . 1 . 2 . 1 2 2 . 2 1 4 . 5 Fabricators 7 | . . . . . . . . . 1 . 1 . . . . . . . 2 . 1 . . . 1 . . . . . . . . . 1 Repair Stations 2 | . 1 . . . . . . . . . . . . . . . . . 1 . . . . . . . . . . . . . . . . Recycling Units 2 | . . . . . 1 . . . . . . . . . . . . . . . . . . . . . . . . . . . . . 1 Scanalyzers 8 | . . . . . 1 . . . . . 1 . . . . . . . . . . . 1 . 1 . . . 1 . . . . . 3 Garrison Access 12 | . . . . . 1 . 1 . . . 1 . 1 . . . . . . . 1 . . . . . 1 . . . 1 . 1 . 4 Total Hacks 221 | . 22 1 2 . 29 2 22 7 3 . 13 . 3 . . . 2 . 9 . 3 . 11 . 15 . 2 4 9 . 9 1 15 . 37 Successful 116 | . 11 1 2 . 26 . 15 1 1 . 6 . 1 . . . 1 . 4 . 2 . 5 . 7 . 2 1 2 . 4 1 5 . 18 Failed 103 | . 11 . . . 3 2 7 6 2 . 6 . 2 . . . 1 . 5 . 1 . 6 . 8 . . 3 7 . 5 . 10 . 18 Catastrophic 20 | . 1 . . . . 1 . 1 . . . . . . . . . . 1 . 1 . 2 . 1 . . 2 . . 1 . 5 . 4 Database Lockouts 2 | . . . . . . . . . . . 1 . . . . . . . . . . . . . . . . . . . . . . . 1 Manual 70 | . 7 . 1 . 15 2 9 3 1 . 3 . . . . . . . 6 . 1 . 5 . 3 . . . 1 . 2 1 1 . 9 Terminals 144 | . 21 . . . 24 2 21 7 2 . 8 . 1 . . . 2 . 4 . 1 . 7 . 3 . 1 4 2 . 7 1 13 . 13 Fabricators 15 | . . . . . . . . . 1 . 2 . . . . . . . 4 . 1 . . . 4 . . . . . . . . . 3 Repair Stations 2 | . 1 . . . . . . . . . . . . . . . . . 1 . . . . . . . . . . . . . . . . Recycling Units 6 | . . . . . 1 . . . . . . . . . . . . . . . . . . . . . . . . . . . . . 5 Scanalyzers 32 | . . . . . 3 . . . . . 2 . . . . . . . . . . . 4 . 8 . . . 7 . . . . . 8 Garrison Access 19 | . . . . . 1 . 1 . . . 1 . 2 . . . . . . . 1 . . . . . 1 . . . 2 . 2 . 8 Terminal Hacks 56 | . 10 1 2 . 11 . 11 1 . . 4 . 1 . . . 1 . . . 1 . 2 . 1 . 1 1 1 . 2 1 3 . 1 Record 1 | . . . 1 . . . . . . . . . . . . . . . . . . . . . . . . . . . . . . . . Part Schematic 1 | . 1 . . . . . . . . . . . . . . . . . . . . . . . . . . . . . . . . . . Robot Schematic 1 | . 1 . . . . . . . . . . . . . . . . . . . . . . . . . . . . . . . . . . Robot Analysis 4 | . 2 . . . . . 2 . . . . . . . . . . . . . . . . . . . . . . . . . . . . Prototype ID Bank 7 | . 3 . . . 2 . 2 . . . . . . . . . . . . . . . . . . . . . . . . . . . . Open Door 2 | . . 1 . . . . . . . . . . . . . . . . . . . . . . . . . . . . . . . . 1 Open DSF 8 | . . . . . . . . . . . . . 1 . . . 1 . . . 1 . . . 1 . 1 . 1 . 1 . 1 . . Branch Access Points 1 | . 1 . . . . . . . . . . . . . . . . . . . . . . . . . . . . . . . . . . Machine Index 2 | . . . . . . . . . . . 1 . . . . . . . . . . . . . . . . . . . 1 . . . . Terminal Index 2 | . . . . . . . . . . . . . . . . . . . . . . . 1 . . . . . . . . . 1 . . Garrison Index 2 | . . . . . 1 . 1 . . . . . . . . . . . . . . . . . . . . . . . . . . . . Unreport Threat 1 | . . . . . 1 . . . . . . . . . . . . . . . . . . . . . . . . . . . . . . Locate Traps 8 | . 2 . . . 3 . 2 . . . 1 . . . . . . . . . . . . . . . . . . . . . . . . Hauler Manifests 1 | . . . . . . . 1 . . . . . . . . . . . . . . . . . . . . . . . . . . . . Registered Components 1 | . . . . . 1 . . . . . . . . . . . . . . . . . . . . . . . . . . . . . . Zone Layout 10 | . . . . . 3 . 3 . . . 2 . . . . . . . . . . . 1 . . . . . . . . . 1 . . Garrison Registry 3 | . . . . . . . . 1 . . . . . . . . . . . . . . . . . . . 1 . . . 1 . . . Proto ID Catalog 1 | . . . 1 . . . . . . . . . . . . . . . . . . . . . . . . . . . . . . . . Fabricator Hacks 3 | . . . . . . . . . . . . . . . . . . . 1 . . . . . 1 . . . . . . . . . 1 Network Status 2 | . . . . . . . . . . . . . . . . . . . 1 . . . . . . . . . . . . . . . 1 Build 1 | . . . . . . . . . . . . . . . . . . . . . . . . . 1 . . . . . . . . . . Repair Station Hacks 2 | . 1 . . . . . . . . . . . . . . . . . 1 . . . . . . . . . . . . . . . . Refit 2 | . 1 . . . . . . . . . . . . . . . . . 1 . . . . . . . . . . . . . . . . Recycling Unit Hacks 4 | . . . . . 1 . . . . . . . . . . . . . . . . . . . . . . . . . . . . . 3 Recycle Component 1 | . . . . . . . . . . . . . . . . . . . . . . . . . . . . . . . . . . . 1 Process 1 | . . . . . . . . . . . . . . . . . . . . . . . . . . . . . . . . . . . 1 Report Inventory 1 | . . . . . 1 . . . . . . . . . . . . . . . . . . . . . . . . . . . . . . Retrieve Matter 1 | . . . . . . . . . . . . . . . . . . . . . . . . . . . . . . . . . . . 1 Scanalyzer 12 | . . . . . 3 . . . . . 1 . . . . . . . . . . . 1 . 4 . . . . . . . . . 3 Retrieve Study 12 | . . . . . 3 . . . . . 1 . . . . . . . . . . . 1 . 4 . . . . . . . . . 3 Garrison Access Hacks 17 | . . . . . 1 . 1 . . . 1 . . . . . . . . . 1 . . . . . 1 . . . 2 . 2 . 8 Unlock Access 5 | . . . . . 1 . 1 . . . 1 . . . . . . . . . . . . . . . 1 . . . 1 . . . . Seal Access 6 | . . . . . . . . . . . . . . . . . . . . . 1 . . . . . . . . . . . 1 . 4 Coupler Status 6 | . . . . . . . . . . . . . . . . . . . . . . . . . . . . . . . 1 . 1 . 4 Unauthorized Hacks 22 | . . . . . 10 . 3 . 1 . . . . . . . . . 2 . . . 2 . 1 . . . 1 . . . . . 2 Terminals 19 | . . . . . 10 . 3 . . . . . . . . . . . 1 . . . 2 . . . . . 1 . . . . . 2 Track 4 | . . . . . 2 . . . . . . . . . . . . . . . . . 1 . . . . . 1 . . . . . . Assimilate 2 | . . . . . 1 . . . . . . . . . . . . . 1 . . . . . . . . . . . . . . . . Botnet 6 | . . . . . 2 . 1 . . . . . . . . . . . . . . . 1 . . . . . . . . . . . 2 Detonate 1 | . . . . . . . 1 . . . . . . . . . . . . . . . . . . . . . . . . . . . . Disrupt 1 | . . . . . . . 1 . . . . . . . . . . . . . . . . . . . . . . . . . . . . Skim 5 | . . . . . 5 . . . . . . . . . . . . . . . . . . . . . . . . . . . . . . Fabricators 3 | . . . . . . . . . 1 . . . . . . . . . 1 . . . . . 1 . . . . . . . . . . Haulers 2 | . . . . . . . . . . . . . . . . . . . 1 . . . . . 1 . . . . . . . . . . Overload 1 | . . . . . . . . . 1 . . . . . . . . . . . . . . . . . . . . . . . . . . Repair Stations . | . . . . . . . . . . . . . . . . . . . . . . . . . . . . . . . . . . . . Recycling Units . | . . . . . . . . . . . . . . . . . . . . . . . . . . . . . . . . . . . . Scanalyzers . | . . . . . . . . . . . . . . . . . . . . . . . . . . . . . . . . . . . . Garrison Access . | . . . . . . . . . . . . . . . . . . . . . . . . . . . . . . . . . . . . Data Cores Recovered 1 | . . . . . . . 1 . . . . . . . . . . . . . . . . . . . . . . . . . . . . Used . | . . . . . . . . . . . . . . . . . . . . . . . . . . . . . . . . . . . . Hacking Detections 54 | . 4 . . . 7 1 4 2 1 . 5 . 2 . . . . . 3 . 1 . 2 . 3 . . 2 2 . 1 . 3 . 11 Full Trace Events 6 | . . . . . . 1 . 2 1 . 1 . . . . . . . . . . . . . . . . . . . . . . . 1 Feedback Events . | . . . . . . . . . . . . . . . . . . . . . . . . . . . . . . . . . . . . Feedback Blocked 1 | . . . . . . . . 1 . . . . . . . . . . . . . . . . . . . . . . . . . . . Robot Schematics Acquired 1 | . 1 . . . . . . . . . . . . . . . . . . . . . . . . . . . . . . . . . . Robots Built . | . . . . . . . . . . . . . . . . . . . . . . . . . . . . . . . . . . . . Authchips . | . . . . . . . . . . . . . . . . . . . . . . . . . . . . . . . . . . . . Time . | . . . . . . . . . . . . . . . . . . . . . . . . . . . . . . . . . . . . Total Robot Build Rating . | . . . . . . . . . . . . . . . . . . . . . . . . . . . . . . . . . . . . Part Schematics Acquired 1 | . 1 . . . . . . . . . . . . . . . . . . . . . . . . . . . . . . . . . . Parts Built 2 | . . . . . . . . . . . . . . . . . . . . . . . . . 2 . . . . . . . . . . Authchips . | . . . . . . . . . . . . . . . . . . . . . . . . . . . . . . . . . . . . Time 69 | . . . . . . . . . . . . . . . . . . . . . . . . . 69 . . . . . . . . . . Total Part Build Rating 18 | . . . . . . . . . . . . . . . . . . . . . . . . . 18 . . . . . . . . . . Part Studies Acquired 12 | . . . . . 3 . . . . . 1 . . . . . . . . . . . 1 . 4 . . . . . . . . . 3 Parts Repaired . | . . . . . . . . . . . . . . . . . . . . . . . . . . . . . . . . . . . . Time . | . . . . . . . . . . . . . . . . . . . . . . . . . . . . . . . . . . . . Parts Recycled 1 | . . . . . . . . . . . . . . . . . . . . . . . . . . . . . . . . . . . 1 Recycled Matter 358 | . . . . . . . . . . . . . . . . . . . . . . . . . . . . . . . . . . . 358 Retrieved Matter 358 | . . . . . . . . . . . . . . . . . . . . . . . . . . . . . . . . . . . 358 Retrieved Components . | . . . . . . . . . . . . . . . . . . . . . . . . . . . . . . . . . . . . Parts Scanalyzed . | . . . . . . . . . . . . . . . . . . . . . . . . . . . . . . . . . . . . Part Schematics Acquired . | . . . . . . . . . . . . . . . . . . . . . . . . . . . . . . . . . . . . Parts Damaged . | . . . . . . . . . . . . . . . . . . . . . . . . . . . . . . . . . . . . Bothacking | -11 -10 -10 -10 -9 -8 -8 -8 -8 -7 -7 -7 -7 -7 -7 -6 -6 -6 -6 -5 -5 -5 -5 -4 -4 -4 -4 -3 -3 -3 -3 -2 -2 -2 -2 -1 ------------ Run | Yrd Mat Min Exi Min Mat Gar Mat Gar Fac Was Fac Gar Fac DSF Fac Was Fac DSF Fac Was Fac DSF Fac Was Fac DSF Res Gar Res DSF Res Gar Res DSF Acc Used RIF Installer 2 | . . . . . . . . . . . . . . . . . . . . . . . . . . . . 1 . . . 1 . . . Structural Interface 1 | . . . . . . . . . . . . . . . . . . . . . . . . . . . . . . . . 1 . . . Robots Hacked 29 | . . . . . . . 1 . 1 . . . . . 1 . . . 1 . 1 . 1 . 2 . . . 3 . 2 . 2 . 14 Non-combat 22 | . . . . . . . 1 . 1 . . . . . 1 . . . 1 . 1 . 1 . 2 . . . 3 . 2 . 2 . 7 Combat 7 | . . . . . . . . . . . . . . . . . . . . . . . . . . . . . . . . . . . 7 Robot Hacks Applied 36 | . . . . . . . 1 . 1 . . . . . 1 . . . 1 . 1 . 1 . 2 . . . 5 . 5 . 4 . 14 parse_system 4 | . . . . . . . 1 . . . . . . . . . . . . . . . . . 1 . . . . . 1 . . . 1 find_chute 4 | . . . . . . . . . 1 . . . . . 1 . . . 1 . . . 1 . . . . . . . . . . . . hold_bot 1 | . . . . . . . . . . . . . . . . . . . . . . . . . . . . . . . . . . . 1 find_fabricator 1 | . . . . . . . . . . . . . . . . . . . . . . . . . . . . . . . . . . . 1 find_dsf 4 | . . . . . . . . . . . . . . . . . . . . . 1 . . . 1 . . . 1 . . . 1 . . drop_inventory 3 | . . . . . . . . . . . . . . . . . . . . . . . . . . . . . 1 . . . 1 . 1 find_recycling 1 | . . . . . . . . . . . . . . . . . . . . . . . . . . . . . . . . . . . 1 locate_traps 2 | . . . . . . . . . . . . . . . . . . . . . . . . . . . . . 1 . 1 . . . . block_reporting 4 | . . . . . . . . . . . . . . . . . . . . . . . . . . . . . 2 . 1 . 1 . . map_route 2 | . . . . . . . . . . . . . . . . . . . . . . . . . . . . . . . 1 . . . 1 link_fov 1 | . . . . . . . . . . . . . . . . . . . . . . . . . . . . . . . . . . . 1 amplify_resonance 4 | . . . . . . . . . . . . . . . . . . . . . . . . . . . . . . . . . . . 4 wipe_record 1 | . . . . . . . . . . . . . . . . . . . . . . . . . . . . . . . . . . . 1 overwrite_iff 2 | . . . . . . . . . . . . . . . . . . . . . . . . . . . . . . . . . . . 2 formatsys_low 2 | . . . . . . . . . . . . . . . . . . . . . . . . . . . . . . . 1 . 1 . . Relay Couplers Released 20 | . . . . . . . . 5 . . . . . . . . . . . . . . . . . . . 5 . . . 3 . . 7 Machine Destruction 20 | . . . . . . . . 5 . . . . . . . . . . . . . . . . . . . 5 . . . 3 . . 7 Attached 11 | . . . . . . . . . . . . . . . . . . . . . . . . . . . . 3 . . . 1 . . 7 Fabnet Peak Effective % . | . . . . . . . . . . . . . . . . . . . . . . . . . . . . . . . . . . . . Robots Rewired 5 | . . . . . . . . 4 . . . . . . 1 . . . . . . . . . . . . . . . . . . . . Allies Hacked . | . . . . . . . . . . . . . . . . . . . . . . . . . . . . . . . . . . . . Hacks Repelled . | . . . . . . . . . . . . . . . . . . . . . . . . . . . . . . . . . . . . Allies | -11 -10 -10 -10 -9 -8 -8 -8 -8 -7 -7 -7 -7 -7 -7 -6 -6 -6 -6 -5 -5 -5 -5 -4 -4 -4 -4 -3 -3 -3 -3 -2 -2 -2 -2 -1 -------- Run | Yrd Mat Min Exi Min Mat Gar Mat Gar Fac Was Fac Gar Fac DSF Fac Was Fac DSF Fac Was Fac DSF Fac Was Fac DSF Res Gar Res DSF Res Gar Res DSF Acc Total Allies 55 | . . . . 5 1 . . 4 . . . . . . 1 19 . . 1 20 . . . . . . . . . . 1 . 1 . 2 Largest Group 20 | . . . . 5 6 . . 2 . . . . . . 1 20 3 . 1 20 2 . . . . . . . . . 1 1 1 . 1 Highest-Rated Group 833 | . . . . 90 100 . . 45 . . . . . . 32 734 75 . 10 833 50 . . . . . . . . . 26 26 26 . 58 Highest-Rated Ally 58 | . . . . 31 31 . . 25 . . . . . . 32 50 25 . 10 50 25 . . . . . . . . . 26 26 26 . 58 Total Orders . | . . . . . . . . . . . . . . . . . . . . . . . . . . . . . . . . . . . . Ally Attacks 134 | . . . . 5 42 . . . . . . . . . 9 74 . . . . 2 . . . . . . . . . . . . . 2 Total Damage 4643 | . . . . 80 589 . . . . . . . . . 173 3728 . . . . 24 . . . . . . . . . . . . . 49 Kills 17 | . . . . 2 5 . . . . . . . . . 1 8 . . . . . . . . . . . . . . . . . . 1 Allies Corrupted . | . . . . . . . . . . . . . . . . . . . . . . . . . . . . . . . . . . . . Allies Melted 1 | . . . . . . . . 1 . . . . . . . . . . . . . . . . . . . . . . . . . . . Intel | -11 -10 -10 -10 -9 -8 -8 -8 -8 -7 -7 -7 -7 -7 -7 -6 -6 -6 -6 -5 -5 -5 -5 -4 -4 -4 -4 -3 -3 -3 -3 -2 -2 -2 -2 -1 ------- Run | Yrd Mat Min Exi Min Mat Gar Mat Gar Fac Was Fac Gar Fac DSF Fac Was Fac DSF Fac Was Fac DSF Fac Was Fac DSF Res Gar Res DSF Res Gar Res DSF Acc Active Infowar (turns) 8297 | . 232 195 112 255 631 197 203 834 . . 383 209 367 145 188 205 101 56 166 230 814 38 200 35 299 58 84 362 361 59 107 223 404 52 492 Optics 7193 | . . . . . 346 197 203 828 . . 364 209 367 145 188 205 101 56 166 230 814 38 200 35 299 58 84 362 361 59 107 223 404 52 492 Terrain 228 | . . . . . . . . . . . . . 35 137 . . 21 35 . . . . . . . . . . . . . . . . . Structural 2143 | . . . . . 563 . 65 156 . . . . . . . . . . . . 542 38 200 35 299 54 84 107 . . . . . . . Seismic 24 | . 24 . . . . . . . . . . . . . . . . . . . . . . . . . . . . . . . . . . T.N.C. 1076 | . 230 195 112 255 284 . . . . . . . . . . . . . . . . . . . . . . . . . . . . . . Cloaking 63 | . . . . . . . . . . . . . . . . . . . . . . . . . 5 16 . 42 . . . . . . . Jamming 3854 | . . . . . . . . 168 . . 30 . 39 . . . 16 36 122 . 773 38 200 35 299 18 54 362 361 59 107 223 404 46 464 ECM 113 | . . . . . . . . . . . . . . . . . . . . . . . . . . . . . . . . . . . 113 Robot Analysis Total 4 | . 2 . . . . . 2 . . . . . . . . . . . . . . . . . . . . . . . . . . . . Derelict Logs Recovered 2 | . . 1 . 1 . . . . . . . . . . . . . . . . . . . . . . . . . . . . . . . Drone Launches . | . . . . . . . . . . . . . . . . . . . . . . . . . . . . . . . . . . . . Drone Recoveries . | . . . . . . . . . . . . . . . . . . . . . . . . . . . . . . . . . . . . Exploration | -11 -10 -10 -10 -9 -8 -8 -8 -8 -7 -7 -7 -7 -7 -7 -6 -6 -6 -6 -5 -5 -5 -5 -4 -4 -4 -4 -3 -3 -3 -3 -2 -2 -2 -2 -1 ------------- Run | Yrd Mat Min Exi Min Mat Gar Mat Gar Fac Was Fac Gar Fac DSF Fac Was Fac DSF Fac Was Fac DSF Fac Was Fac DSF Res Gar Res DSF Res Gar Res DSF Acc Turns Passed 9306 | 34 256 195 112 255 631 197 203 951 593 29 595 209 367 145 188 205 101 56 166 230 814 38 200 35 299 58 84 362 361 59 107 223 404 52 492 Spaces Moved 11110 | 63 335 386 295 518 726 273 300 285 375 79 566 163 274 73 210 237 57 114 295 308 778 62 373 84 393 75 169 290 499 93 180 270 512 42 1358 Core 684 | 63 158 . . . . 43 . 53 4 . . 1 41 6 210 105 . . . . . . . . . . . . . . . . . . . Treads . | . . . . . . . . . . . . . . . . . . . . . . . . . . . . . . . . . . . . Legs 270 | . . . . . . . . 92 149 . 29 . . . . . . . . . . . . . . . . . . . . . . . . Wheels 281 | . . . . . . . . . . . . . 214 67 . . . . . . . . . . . . . . . . . . . . . Hover 4351 | . . . . . . . . . 46 . . . 19 . . 132 9 . 25 308 778 62 373 84 393 75 169 290 499 93 180 270 512 34 . Flight 5524 | . 177 386 295 518 726 230 300 140 176 79 537 162 . . . . 48 114 270 . . . . . . . . . . . . . . 8 1358 Fastest Speed 16 | 50 37 37 37 37 34 34 34 34 35 35 32 26 80 50 50 50 37 37 35 35 27 27 40 40 40 25 48 44 44 44 44 44 40 31 16 Average Speed 45 | 50 43 38 37 37 34 37 35 117 134 35 44 31 101 85 50 60 41 37 37 38 40 38 40 40 40 44 48 47 44 44 44 44 42 41 20 Slowest Speed 200 | 50 50 120 37 37 37 50 40 200 200 35 120 200 200 200 50 76 68 37 117 42 97 40 40 40 43 48 48 110 44 44 44 44 48 114 50 Overloaded Moves 13 | . . . . . . . . . . . . . . . . . . . . . 2 7 . . . 4 . . . . . . . . . Propulsion Burnouts . | . . . . . . . . . . . . . . . . . . . . . . . . . . . . . . . . . . . . Robots Hopped 73 | . 3 9 . 13 3 1 3 . 5 . 2 3 . . . . . . 6 . . . . . . . . . . . . . . . 25 Potential Cave-ins 5 | . . . . . . . . . . . . . . . . . . . . . . . . . . . . 5 . . . . . . . Cave-ins Triggered . | . . . . . . . . . . . . . . . . . . . . . . . . . . . . . . . . . . . . Teleports 10 | . . . . . . . . 7 . . 2 . . 1 . . . . . . . . . . . . . . . . . . . . . Exploration Rate (%) 43 | 3 64 73 70 70 64 39 38 45 14 80 18 27 10 70 7 92 2 80 9 94 26 93 15 77 11 85 9 29 16 73 8 39 21 51 51 Regions Visited 35 Branch Regions 3 Pre-discovered Areas 6 | . . 1 1 1 3 . . . . . . . . . . . . . . . . . . . . . . . . . . . . . . Known Exits Taken 12 | . 1 . . . 1 . 1 . . . 1 . 1 . . . 1 . . . 1 . . . 1 . 1 . 1 . 1 . 1 . . Unknown Exits Taken 4 | 1 . 1 1 1 . . . . . . . . . . . . . . . . . . . . . . . . . . . . . . . Scrap Searched 1 | . . . . 1 . . . . . . . . . . . . . . . . . . . . . . . . . . . . . . . Spaces Dug 164 | . . 4 . 7 23 9 13 5 . . 3 . . 2 . . . . 2 . 21 4 3 . 2 5 . 3 10 5 3 2 14 . 24 Terrain Destroyed 260 | . . 11 . 14 23 9 43 5 . . 3 . . 2 . . . . 2 . 35 4 6 . 4 5 . 17 10 5 3 3 20 . 36 Melee 14 | . . . . . 2 2 . 5 . . 3 . . 2 . . . . . . . . . . . . . . . . . . . . . Projectile 147 | . . . . . . . . . . . . . . . . . . . 2 . 35 4 6 . 2 5 . 16 10 5 3 3 20 . 36 AOE 96 | . . 11 . 14 21 7 43 . . . . . . . . . . . . . . . . . . . . . . . . . . . . Terrain Rammed . | . . . . . . . . . . . . . . . . . . . . . . . . . . . . . . . . . . . . Walls Destroyed . | . . . . . . . . . . . . . . . . . . . . . . . . . . . . . . . . . . . . Machines Disabled . | . . . . . . . . . . . . . . . . . . . . . . . . . . . . . . . . . . . . Actions | -11 -10 -10 -10 -9 -8 -8 -8 -8 -7 -7 -7 -7 -7 -7 -6 -6 -6 -6 -5 -5 -5 -5 -4 -4 -4 -4 -3 -3 -3 -3 -2 -2 -2 -2 -1 --------- Run | Yrd Mat Min Exi Min Mat Gar Mat Gar Fac Was Fac Gar Fac DSF Fac Was Fac DSF Fac Was Fac DSF Fac Was Fac DSF Res Gar Res DSF Res Gar Res DSF Acc Total 14531 | 64 383 412 297 566 1071 350 370 829 433 79 852 286 347 144 292 298 92 128 339 417 1204 72 406 84 499 95 171 446 630 105 202 359 647 71 1491 Wait 2376 | . 10 24 . 52 301 40 48 441 28 . 244 52 56 60 71 57 5 6 11 96 350 . 8 . 67 2 . 64 104 7 7 69 59 8 29 Move 10945 | 62 328 368 294 493 720 270 293 284 367 78 561 158 273 72 210 236 56 113 283 307 777 61 373 83 392 74 169 289 498 92 179 269 511 41 1311 Hop 62 | . 3 8 . 11 3 1 3 . 3 . 2 1 . . . . . . 6 . . . . . . . . . . . . . . . 21 Pick Up 42 | . 2 2 2 1 2 . 3 1 2 . 3 1 . . . . 1 2 3 . 1 2 1 . 2 1 1 2 1 . . . . . 6 Fast Attach 156 | 2 5 2 . . 10 2 5 5 7 1 5 3 7 1 4 3 4 . 8 8 7 1 4 1 2 2 . 14 2 . 1 3 8 5 24 Attach 25 | . 1 . . . 1 . 2 1 1 . 6 1 . . 2 . 2 1 . . . . 1 . 2 . 1 2 . . . . 1 . . Detach 12 | . . . . . . . . . . . 3 . 1 . 2 . . 2 1 . . . 1 . . . . 1 . . . . 1 . . Swap 78 | . . 2 . 4 8 4 1 3 2 . . 1 1 1 . . 1 . 7 . 7 1 2 . 2 1 . 3 4 1 3 3 11 3 2 Drop 138 | . 2 1 1 3 9 4 3 1 8 . 3 2 3 . 1 2 3 3 13 6 7 3 3 . 2 6 . 7 5 . . 2 10 9 16 Fire 400 | . 32 5 . 2 12 2 2 . 10 . . 3 . . . . 20 1 6 . 53 4 12 . 28 5 . 47 16 5 11 13 38 4 69 Melee 127 | . . . . . 5 7 10 34 5 . 25 14 6 5 2 . . . 1 . 1 . 1 . 2 . . . . . . . 8 1 . Ram 1 | . . . . . . . . . . . . . . . . . . . . . 1 . . . . . . . . . . . . . . Kick . | . . . . . . . . . . . . . . . . . . . . . . . . . . . . . . . . . . . . Crush . | . . . . . . . . . . . . . . . . . . . . . . . . . . . . . . . . . . . . Escape Stasis 139 | . . . . . . 20 . 30 . . . 50 . 5 . . . . . . . . . . . 4 . 16 . . 1 . . . 13 Rewire 30 | . . . . . . . . 29 . . . . . . . . . . . . . . . . . . . 1 . . . . . . . Trap . | . . . . . . . . . . . . . . . . . . . . . . . . . . . . . . . . . . . . Miscellaneous . | . . . . . . . . . . . . . . . . . . . . . . . . . . . . . . . . . . . . Route ------- -11/Scrapyard -10/Materials (discovered 3 exits: [*Mat x2] / *Min) -10/Mines (discovered 3 exits: [*Mat x2] / *Exi) -10/Exiles (discovered 2 exits: [*Min x2]) -9/Mines -8/Materials (discovered 4 exits: *Fac x3 / Gar) -8/Garrison -8/Materials (discovered 2 exits: *Fac / Gar) -8/Garrison (discovered 3 exits: *Fac x3) -7/Factory -7/Waste -7/Factory (discovered 5 exits: [*Fac x2] / [*Sto x2] / Gar) -7/Garrison -7/Factory (discovered 2 exits: [*Low] / DSF) -7/DSF -6/Factory -6/Waste -6/Factory -6/DSF -5/Factory -5/Waste -5/Factory (discovered 2 exits: [*Upp] / DSF) -5/DSF -4/Factory -4/Waste -4/Factory -4/DSF -3/Research -3/Garrison (discovered 3 exits: *Res x3) -3/Research -3/DSF -2/Research -2/Garrison (discovered 3 exits: *Res x3) -2/Research -2/DSF -1/Access To Epsilon Eridani History --------- Turn | Location | Event 6 | -11/Scrapyard | Discovered new exit (range 15) 35 | -11/Scrapyard | Entered Materials 165 | -10/Materials | Discovered new exit (range 4) 257 | -10/Materials | Discovered new exit (range 16) 274 | -10/Materials | Identified exit to Mines 291 | -10/Materials | Entered Mines 298 | -10/Mines | Found a Scrap Suit stashed away for nefarious purposes 299 | -10/Mines | Found Scrap Suit 317 | -10/Mines | Learned location of 1 exit from Materials 322 | -10/Mines | Learned location of Storage (-7) 353 | -10/Mines | Discovered new exit (range 8) 359 | -10/Mines | Found the Drone Emporium 361 | -10/Mines | Found Prototype Device 441 | -10/Mines | Discovered new exit (range 9) 484 | -10/Mines | Deemed a non-threat by the Exiles lab entrance 484 | -10/Mines | Discovered new exit (range 5) 486 | -10/Mines | Entered Exiles 492 | -10/Exiles | Discovered new exit (range 15) 496 | -10/Exiles | Met 8R-AWN 502 | -10/Exiles | Met EX-HEX 515 | -10/Exiles | Met EX-DEC 522 | -10/Exiles | Learned location of Zion (-7) 530 | -10/Exiles | Met EX-BIN 535 | -10/Exiles | Aligned with FarCom system 535 | -10/Exiles | Given EX-Vault access code 544 | -10/Exiles | Opened EX-Vault 547 | -10/Exiles | Found Latent Energy Streamer 556 | -10/Exiles | Warned to stay clear of 0b10 Research branches 594 | -10/Exiles | Discovered new exit (range 14) 598 | -10/Exiles | Left Exiles lab with Latent Energy Streamer 598 | -10/Exiles | Entered Mines 699 | -9/Mines | Build established: Scavenger-Mutant 733 | -9/Mines | Discovered new exit (range 3) 752 | -9/Mines | Assisted by bots powering up and referring to "LRC-V3" 853 | -9/Mines | Entered Materials 853 | -8/Materials | Accompanied by 5 allies 853 | -8/Materials | Evolved 4 slots: Propulsion x1, Utility x3 854 | -8/Materials | Identified exit to Factory 858 | -8/Materials | Led the pair of lost Derelicts to an unsafe place 960 | -8/Materials | Identified Sensor Drone Bay 1030 | -8/Materials | Lost 3 allies 1178 | -8/Materials | Learned Factory fabricator intel 1242 | -8/Materials | Learned Factory security intel 1258 | -8/Materials | Learned Storage emergency access door positions 1265 | -8/Materials | Learned location of 1 exit from Recycling 1290 | -8/Materials | Learned 2 Storage zone layouts 1349 | -8/Materials | Build established: Hacker-Scout 1484 | -8/Materials | Identified exit to Garrison 1484 | -8/Materials | Entered Garrison 1618 | -8/Garrison | Spotted B-75 Beast 1632 | -8/Garrison | Triggered checkpoint 1643 | -8/Garrison | Triggered checkpoint 1674 | -8/Garrison | Lost 4 parts (3n1w) 1676 | -8/Garrison | Discovered new exit (range 12) 1681 | -8/Garrison | Entered Materials 1765 | -8/Materials | Build established: Hacker-Mutant 1830 | -8/Materials | Discovered exit to Factory (range 13) 1883 | -8/Materials | Identified exit to Garrison 1884 | -8/Materials | Entered Garrison 1904 | -8/Garrison | Triggered checkpoint 1929 | -8/Garrison | Discovered exit to Factory (range 62) 1929 | -8/Garrison | Discovered exit to Factory (range 89) 1929 | -8/Garrison | Discovered exit to Factory (range 60) 1971 | -8/Garrison | Garrison Relay disabled 2141 | -8/Garrison | Core integrity fell below 50% 2145 | -8/Garrison | Found Blink Core 2183 | -8/Garrison | Lost 5 parts (1p3n1w) 2404 | -8/Garrison | Triggered checkpoint 2654 | -8/Garrison | Core integrity fell below 20% 2835 | -8/Garrison | Entered Factory 2835 | -7/Factory | Evolved 2 slots: Propulsion x1, Utility x1 2837 | -7/Factory | Loaded intel: 6 fabricator locations 3426 | -7/Factory | Discovered new exit (range 12) 3428 | -7/Factory | Manually triggered Chute Trap 3428 | -7/Factory | Sucked down chute 3428 | -7/Factory | Entered Waste 3442 | -7/Waste | Spotted C-40 Crusher 3442 | -7/Waste | Spotted C-40 Crusher 3442 | -7/Waste | Spotted C-40 Crusher 3442 | -7/Waste | Spotted C-40 Crusher 3443 | -7/Waste | EMP discharged 3443 | -7/Waste | System corruption reached 10% 3444 | -7/Waste | Spotted C-40 Crusher 3451 | -7/Waste | Spotted C-40 Crusher 3454 | -7/Waste | Discovered new exit (range 11) 3457 | -7/Waste | Entered Factory 3532 | -7/Factory | Discovered new exit (range 7) 3538 | -7/Factory | Central database locked down 3542 | -7/Factory | Discovered new exit (range 14) 3705 | -7/Factory | Discovered new exit (range 3) 3721 | -7/Factory | Discovered new exit (range 17) 4044 | -7/Factory | Identified exit to Garrison 4052 | -7/Factory | Entered Garrison 4224 | -7/Garrison | Triggered checkpoint 4225 | -7/Garrison | Triggered checkpoint 4254 | -7/Garrison | Discovered new exit (range 12) 4255 | -7/Garrison | Core integrity fell below 50% 4261 | -7/Garrison | Entered Factory 4281 | -7/Factory | Discovered new exit (range 19) 4291 | -7/Factory | Lost 6 parts (1p4n1w) 4628 | -7/Factory | Identified exit to DSF 4628 | -7/Factory | Entered DSF 4732 | -7/DSF | Additional patrols routed to DSF 4756 | -7/DSF | Discovered new exit (range 14) 4773 | -7/DSF | Entered Factory 4773 | -6/Factory | Evolved 2 slots: Power x1, Propulsion x1 4961 | -6/Factory | Sucked down chute 4961 | -6/Factory | Entered Waste 4965 | -6/Waste | Spotted C-40 Crusher 4976 | -6/Waste | Spotted C-40 Crusher 4987 | -6/Waste | Spotted C-40 Crusher 4989 | -6/Waste | Spotted C-40 Crusher 4990 | -6/Waste | Spotted C-40 Crusher 4991 | -6/Waste | 1 allies followed down the chute 4999 | -6/Waste | Crushed by Compactor (1 part destroyed, 1 dropped) 5001 | -6/Waste | Spotted C-40 Crusher 5003 | -6/Waste | Discovered new exit (range 20) 5005 | -6/Waste | Crushed by Compactor (1 part destroyed, 2 dropped) 5009 | -6/Waste | Warlord forces began an assault 5166 | -6/Waste | Entered Factory 5166 | -6/Factory | Accompanied by 3 allies 5259 | -6/Factory | Murdered 3 allies 5267 | -6/Factory | Identified exit to DSF 5267 | -6/Factory | Entered DSF 5287 | -6/DSF | Additional patrols routed to DSF 5301 | -6/DSF | Discovered new exit (range 16) 5323 | -6/DSF | Entered Factory 5323 | -5/Factory | Evolved 2 slots: Utility x2 5342 | -5/Factory | Lost 4 parts (1p2u1w) 5459 | -5/Factory | Discovered new exit (range 8) 5489 | -5/Factory | Sucked down chute 5489 | -5/Factory | Entered Waste 5490 | -5/Waste | Joined by Warlord forces that had cleared the area 5493 | -5/Waste | Found Prototype Processor 5493 | -5/Waste | Identified Exp. Core Analyzer 5585 | -5/Waste | Found Prototype Device 5585 | -5/Waste | Identified Exp. Shock Absorption System 5606 | -5/Waste | Build established: Mutant 5613 | -5/Waste | Discovered new exit (range 20) 5719 | -5/Waste | Entered Factory 5719 | -5/Factory | Accompanied by 2 allies 5788 | -5/Factory | Discovered new exit (range 9) 6288 | -5/Factory | Build established: Infiltrator-Scout 6532 | -5/Factory | Identified exit to DSF 6533 | -5/Factory | Entered DSF 6557 | -5/DSF | Found Prototype Hackware 6557 | -5/DSF | Identified Exp. System Shield 6558 | -5/DSF | Additional patrols routed to DSF 6560 | -5/DSF | Found Exp. System Shield 6566 | -5/DSF | Discovered new exit (range 14) 6571 | -5/DSF | Entered Factory 6571 | -4/Factory | Evolved 2 slots: Utility x2 6706 | -4/Factory | Unchained authorized (1B-0RG) 6746 | -4/Factory | Exiles provided nearest exit location to -4/Armory 6771 | -4/Factory | Sucked down chute 6771 | -4/Factory | Entered Waste 6776 | -4/Waste | Spotted C-40 Crusher 6780 | -4/Waste | Spotted C-40 Crusher 6786 | -4/Waste | Spotted C-40 Crusher 6793 | -4/Waste | Spotted C-40 Crusher 6793 | -4/Waste | Spotted C-40 Crusher 6794 | -4/Waste | Discovered new exit (range 23) 6797 | -4/Waste | Spotted C-40 Crusher 6802 | -4/Waste | Crushed by Compactor (1 part destroyed, 1 dropped) 6806 | -4/Waste | Entered Factory 6842 | -4/Factory | Build established: Hacker-Scout 6914 | -4/Factory | Fabricated Enh. Nova Cannon? 7093 | -4/Factory | Identified exit to DSF 7105 | -4/Factory | Entered DSF 7124 | -4/DSF | Additional patrols routed to DSF 7152 | -4/DSF | Discovered new exit (range 20) 7163 | -4/DSF | Entered Research 7163 | -3/Research | Evolved 2 slots: Propulsion x1, Utility x1 7247 | -3/Research | Identified exit to Garrison 7247 | -3/Research | Entered Garrison 7263 | -3/Garrison | Discovered new exit (range 26) 7263 | -3/Garrison | Discovered new exit (range 50) 7263 | -3/Garrison | Discovered new exit (range 50) 7351 | -3/Garrison | Spotted B-86 Titan 7398 | -3/Garrison | Garrison Relay disabled 7496 | -3/Garrison | Lost 8 parts (2p2n3u1w) 7519 | -3/Garrison | Triggered checkpoint 7563 | -3/Garrison | Installed Relay Interface Framework 7609 | -3/Garrison | Entered Research 7755 | -3/Research | Unchained authorized (1B-0RG) 7950 | -3/Research | Build established: Hacker-Mutant 7970 | -3/Research | Identified exit to DSF 7970 | -3/Research | Entered DSF 7997 | -3/DSF | Additional patrols routed to DSF 8020 | -3/DSF | Discovered new exit (range 23) 8029 | -3/DSF | Entered Research 8029 | -2/Research | Evolved 2 slots: Propulsion x1, Utility x1 8131 | -2/Research | Unchained authorized (1B-0RG) 8134 | -2/Research | Identified exit to Garrison 8136 | -2/Research | Entered Garrison 8136 | -2/Garrison | Accompanied by 1 ally 8142 | -2/Garrison | Triggered checkpoint 8198 | -2/Garrison | Garrison Relay disabled 8206 | -2/Garrison | Triggered checkpoint 8237 | -2/Garrison | Discovered new exit (range 47) 8237 | -2/Garrison | Discovered new exit (range 51) 8237 | -2/Garrison | Discovered new exit (range 64) 8237 | -2/Garrison | Watched by a mysterious "MATRIX" hacker. 8326 | -2/Garrison | Spotted B-90 Cyclops 8344 | -2/Garrison | Expanded RIF knowledge: Structural Interface 8359 | -2/Garrison | Entered Research 8763 | -2/Research | Identified exit to DSF 8763 | -2/Research | Entered DSF 8791 | -2/DSF | Discovered new exit (range 23) 8811 | -2/DSF | Additional patrols routed to DSF 8815 | -2/DSF | Entered Access 8815 | -1/Access | Evolved 2 slots: Utility x2 8848 | -1/Access | Spotted B-99 Colossus 8913 | -1/Access | Unchained authorized (1B-0RG) 9003 | -1/Access | Central database locked down 9029 | -1/Access | Spotted B-99 Colossus 9077 | -1/Access | Lost 4 parts (4u) 9305 | -1/Access | Discovered new exit (range 6) 9307 | *** | Escaped! Last Messages --------------- 09285_ A bubble of rippling energy engulfs the area. 09285_ Field strength at 73. 09285_ Field strength at 46. 09286_ Field strength at 11. 09287_ Stasis field depleted. 09289_ W-44 Eye knocked back. 09289_ Knocked back. 09295_ Acquired Field Propulsion Array+. 09297_ Imp. Diametric Drive destroyed. 09297_ W-44 Eye knocked back. 09298_ Connecting with Terminal... 09303_ Slug penetrates Wall. 09303_ Imp. Diametric Drive destroyed. 09305_ Connecting with Terminal... >>Open(Door) Sealed Barrier opened. 09305_ Knocked back. 09305_ The Access Shell folds into the floor. 09305_ EXIT=FOUND [Achievement: Travel Light] Map ----- +----------------------------------------------------+ | ?????????????????????????????????????????????????? | | ?????????????????????????????????????????????????? | | ?????????????????????????????????????????????????? | | ?????????????????????????????????????????????????? | | ?????????????????????????????????????????????????? | | ?????????????????????????????????????????????????? | | ?????????????????????????????????????????????????? | | ?????????????????????????????????????????????????? | | ?????????????????????????????????????????????????? | | ?????????????????????????????????????????????????? | | ?????????????????????????????????????????????????? | | ?????????????????????????????????????????????????? | | ?????????????????????????????????????????????????? | | ?????????????????????????????????????????????????? | | ?????????????????????BB????BB????????????????????? | | ?????????????????????BB????BB????????????????????? | | ?????????????????????????????????????????????????? | | ?????????????????????????????????????????????????? | | ?????????????????????????????????????????????????? | | ?????????????????????????????????????????????????? | | ???????????????????#""""""""""#??????????????????? | | ???????????????????# #??????????????????? | | ???????????????????# #??????????????????? | | ???????????????????# #??????????????????? | | ?##?########???????# "" #??????????????????? | | ?? #???????# "@ % #??????????????????? | | ??? #???????# #??????????????????? | | = ? #???????# #??????????????????? | | """"" #???????# #??????????????????? | | """"" #??????## ##?????????????????? | | """"" #??????# #?????????????????? | | """"" #??????##"" % ##?????????????????? | | """"" #???????#"" #??????????????????? | | """"" #???????#"" #??????????????????? | | #???????#T #??????????????????? | | #???????#"" #??????????????????? | | #???????#"" #??????????????????? | | #### #########""c ####???????????????? | | s s g ?????? | | s s mAk ?????? | | ### """#####"#################### ?????? | | ??# ###??????????????????????????????? | | ??# " #????????????????????????????????? | | ??## # ] "#????????????????????????????????? | | ???# # ""#????????????????????????????????? | | ???# #% ""#????????????????????????????????? | | ???# # ""#????????????????????????????????? | | ???# # ""#????????????????????????????????? | | ???# # T"#????????????????????????????????? | | ???# # ""#????????????????????????????????? | +----------------------------------------------------+ Best States ------------- Heat Dissipation 97 Energy Generation 42 Energy Capacity 590 Matter Stores 300 Matter Capacity 300 Sight Range 23 Terrain Scan Range 20 Terrain Scan Density 210 ECM Strength 2 Jamming Range 16 Cloak Strength 3 Additional Mass Support 9 Corruption Block 20 Armor Coverage 600 Propulsion Shielding 66 Evasion (%) 66 Target Analysis 12 Core Analysis 9 Recoil Reduction 1 Offensive Hacking 30 Defensive Hacking 32 Relay Coupler Types 3 Relay Coupler Value 95 Item Schematics ----------------- Huge Storage Unit | -10/Materials | Hacked Robot Schematics ------------------ M-13 Machinist | -10/Materials | Hacked Fabricated ------------ Enh. Nova Cannon | x2 | -4/Factory | Preloaded Repaired ---------- Nothing Studied --------- Flight Unit | -8/Materials | Hacked Lgt. Ion Engine | -8/Materials | Hacked Maul | -8/Materials | Hacked Gravmag System | -7/Factory | Hacked Nova Cannon | -4/Factory | Hacked Antigrav Array | -4/Factory | Hacked Hyp. Gauss Rifle | -4/Factory | Hacked Mic. Fission Core | -4/Factory | Hacked Lgt. Antimatter Reactor | -4/Factory | Hacked Field Propulsion Array | -1/Access | Hacked Enh. Nova Cannon | -1/Access | Hacked Mic. Antimatter Reactor | -1/Access | Hacked Alien Tech Used ----------------- None Achievements -------------- Travel Light Challenges ------------ None Game ------ Seed ExpertVisualMatterbank Manual? 0 Play Time 02:39:44 Cumulative 1340.7 hours Start 2026.02.06 @ 23:43:25 End 2026.02.07 @ 02:39:44 Sessions 1 Manual Loads 0 Difficulty Rogue Special Mode None Game No. 448 Rogue 443 Adventurer 4 Explorer 1 Win Type 0 Total 33 Types 16/5/2/2/0/2/2/0/2/2 Lore% 97 Gallery% 96 Achievement% 84 Wizard Run 0 Options --------- Layout 0 ASCII 0 Keyboard 0 Movement Numpad Keybinds 0 Fullscreen 2 Font 18/SmallcapsGlow Map View 76x50 Zoom Use 0% Tactical HUD 1 Map Filters NONE Filters NONE Steam 1 RUN: 279be62a-7c9b-4694-99ee-8370de2c18f4